Cogmind - Beta 13 @@@ ROGUE MODE // 2024.05.21 @ 20:18:43 Player: Crackrock_Steady Result: Core destroyed Performance ------------- Evolutions (0) 0 Regions Visited (2) 400 Robots Destroyed (22) 110 Value Destroyed (423) 423 Prototype IDs (3) 60 Alien Tech Used (0) 0 Bonus (0) 0 TOTAL SCORE: 993 Bonus ------- None Cogmind --------- Core Integrity 0/250 Matter 214/300 Energy 81/125 System Corruption 0% Temperature Critical (532) Movement Walking (190) Ox1 Location -10/Mines Parts ------- > --- POWER (1) -------- Light Ion Engine > --- PROPULSION (2) --- Aluminum Leg > --- UTILITY (2) ------ Small Storage Unit > --- WEAPON (2) ------- Particle Cannon Particle Cannon > --- INVENTORY (8) ---- Light Ion Engine Improved Heat Sink Cooling System Cooling System Signal Interpreter Tractor Beam Particle Cannon Peak State ------------ > --- POWER ------------ Light Ion Engine > --- PROPULSION ------- Aluminum Leg Aluminum Leg > --- UTILITY ---------- Small Storage Unit Experimental Sensor Array > --- WEAPON ----------- Particle Cannon Particle Cannon > --- INVENTORY -------- Light Ion Engine Cooling System Cooling System Signal Interpreter Tractor Beam Particle Cannon Particle Cannon [Rating: 18] Favorites ----------- Power Ion Engine Engine Ion Engine Propulsion Light Treads Treads Light Treads Leg Aluminum Leg Utility Small Storage Unit Device Seismic Detector Storage Small Storage Unit Weapon Particle Cannon Energy Cannon Particle Cannon Ballistic Gun Assault Rifle Build | -11 -10 -10 ------- Run | Yrd Mat Min Slots Evolved . | . . . Power . | . . . Propulsion . | . . . Utility . | . . . Weapon . | . . . Parts Attached 16 | 7 6 3 Power 2 | 1 1 . Engine 2 | 1 1 . Core . | . . . Reactor . | . . . Propulsion 4 | 2 2 . Treads 2 | 2 . . Leg 2 | . 2 . Wheel . | . . . Hover . | . . . Flight . | . . . Utility 4 | 2 1 1 Device 2 | 1 . 1 Storage 2 | 1 1 . Processor . | . . . Hackware . | . . . Protection . | . . . Artifact . | . . . Weapon 6 | 2 2 2 Energy Gun . | . . . Energy Cannon 4 | . 2 2 Ballistic Gun 2 | 2 . . Ballistic Cannon . | . . . Launcher . | . . . Special Weapon . | . . . Impact Weapon . | . . . Slashing Weapon . | . . . Piercing Weapon . | . . . Special Melee Weapon . | . . . Unidentified Prototypes 1 | . . 1 Parts Lost 5 | . 2 3 Power 1 | . 1 . Propulsion 1 | . . 1 Utility 2 | . 1 1 Weapon 1 | . . 1 Highest Loss Streak 3 | . 1 3 To Critical Strikes . | . . . Average Slot Usage (%) 86 | . 85 96 Engine 13 | . 13 14 Treads 9 | . 11 . Leg 6 | . 3 27 Device 10 | . 12 3 Storage 16 | . 15 21 Energy Cannon 27 | . 27 28 Naked Turns . | . . . Heaviest Build 19 | 15 19 17 Greatest Support 40 | 40 40 20 Greatest Overweight (x) 6 | . 6 1 Average Overweight (x) 1 | . 2 . Largest Inventory Capacity 8 | 8 8 8 Average Capacity 7 | 7 8 8 Most Carried 8 | 5 8 8 Average Carried 6 | 2 7 6 Final Capacity 8 | 8 8 8 Final Carried 7 | 3 7 7 Class Distribution -------------------- 100% | Mutant Dominant Class ---------------- Mutant | -10/Materials Mutant | -10/Mines Resources | -11 -10 -10 ----------- Run | Yrd Mat Min Matter Collected 482 | 341 99 42 Remotely . | . . . Salvage Created 635 | 170 379 86 Parts 45 | 14 29 2 Haulers Intercepted 1 | . 1 . Recyclers Shooed . | . . . Parts Field Recycled . | . . . Retrieved Matter . | . . . Parts Self-Destructed . | . . . Prevented . | . . . Kills | -11 -10 -10 ------- Run | Yrd Mat Min Combat Hostiles Destroyed 15 | . 13 2 Cannons 15 | . 13 2 Classes Destroyed 6 | 2 4 . Tunneler 4 | 4 . . Hauler 1 | . 1 . Recycler 1 | 1 . . Watcher 1 | . 1 . Swarmer 8 | . 8 . Grunt 7 | . 5 2 Best Kill Streak 5 | 5 3 1 Combat Bots Only 3 | . 3 1 Max Kills in Single Turn 1 | 1 1 1 Gunslinging . | . . . Exploded . | . . . Melee . | . . . Uniques/NPCs Destroyed . | . . . Combat | -11 -10 -10 -------- Run | Yrd Mat Min Hostile Shots Fired 88 | . 71 17 Missed 16 | . 15 1 Damage Taken 804 | . 476 328 Core 278 | . 135 143 Absorbed by Shields . | . . . Core Remaining (%) 100 | 100 . . Volleys Fired 64 | 16 36 12 Largest 2 | 2 2 2 Hottest 136 | 40 136 136 Shots Fired 117 | 27 72 18 Gun 27 | 27 . . Cannon 90 | . 72 18 Launcher . | . . . Special . | . . . Kinetic 27 | 27 . . Thermal 90 | . 72 18 Explosive . | . . . Electromagnetic . | . . . Robot Hit Streak 6 | 6 3 6 Robot Miss Streak 7 | 2 7 1 Penetration Max . | . . . Secondary Targets . | . . . Shots Hit Robots 55 | 17 26 12 Core Hits 24 | 6 16 2 Critical Kills . | . . . Critical Parts Destroyed . | . . . Critical Strikes . | . . . Melee Attacks . | . . . Impact . | . . . Slashing . | . . . Piercing . | . . . Sneak Attacks . | . . . Combat Hostiles . | . . . Follow-up Attacks . | . . . Damage Inflicted 1119 | 240 608 271 Guns 240 | 240 . . Cannons 875 | . 604 271 Explosions . | . . . Melee . | . . . Ramming 4 | . 4 . Kinetic 240 | 240 . . Thermal 875 | . 604 271 Explosive . | . . . Electromagnetic . | . . . Impact . | . . . Slashing . | . . . Piercing . | . . . Highest Corruption . | . . . Average Corruption . | . . . Corruption Purged . | . . . Corruption Blocked . | . . . Overload Shots . | . . . Overflow Damage 14 | . 4 10 Projectiles 14 | . 4 10 Explosions . | . . . Melee . | . . . Knockbacks . | . . . Impact . | . . . Kinetic . | . . . Secondary . | . . . Self-Inflicted Damage . | . . . Shots . | . . . Rammed 2 | . 2 . Targets Rammed 3 | . 3 . Kicked 1 | . 1 . Crushed . | . . . Highest Temperature 669 | . 534 669 Average Temperature 195 | . 158 419 Received Heat Transfer 165 | . 24 141 Effects 19 | . 6 13 Shutdowns 4 | . 1 3 Energy Bleed 2 | . 2 . Interference 2 | . . 2 Matter Decay 3 | . 1 2 Short Circuit 4 | . 2 2 Damage (minor) 1 | . . 1 Damage (major) 1 | . . 1 Damage (core) 2 | . . 2 Siege Activations . | . . . Robots Corrupted . | . . . Combat Hostiles . | . . . Parts Fried . | . . . Impact Corruptions . | . . . Robots Melted . | . . . Combat Hostiles . | . . . Parts Melted 1 | . . 1 Heat Transferred 1517 | . 1036 481 Parts Sabotaged . | . . . Parts Stolen . | . . . Parts Stripped . | . . . Power Chain Reactions . | . . . Alert | -11 -10 -10 ------- Run | Yrd Mat Min Peak Influence 237 | 25 237 53 Initial 33 | . 16 33 Average 80 | 12 99 35 Maximum Alert Level 1 | . 1 . Low Security (%) 90 | 100 87 100 Level 1 9 | . 12 . Level 2 . | . . . Level 3 . | . . . Level 4 . | . . . Level 5 . | . . . High Security . | . . . Max Security . | . . . Squads Dispatched 2 | . 2 . Investigation 2 | . 2 . Extermination . | . . . Reinforcement . | . . . Assault . | . . . Garrison . | . . . Intercept . | . . . Searches Triggered . | . . . Construction Impeded . | . . . Haulers Reinforced . | . . . Active Scanning Responses . | . . . Cargo Convoy Interrupts . | . . . Stealth | -11 -10 -10 --------- Run | Yrd Mat Min Distress Signals 1 | . 1 . Communications Jammed . | . . . Distress Signals . | . . . Times Spotted 23 | . 21 2 Peak Tracking Total 5 | . 5 2 Tactical Retreats . | . . . Traps | -11 -10 -10 ------- Run | Yrd Mat Min Traps Triggered . | . . . Indirectly . | . . . Trap Hack Attempts . | . . . Triggered . | . . . Disarmed . | . . . Reprogrammed . | . . . Reused . | . . . Traps Extracted . | . . . Installed . | . . . Triggered . | . . . Machines | -11 -10 -10 ---------- Run | Yrd Mat Min Machines Disabled 4 | . 4 . Max in Single Turn 2 | . 2 . Machines Repaired . | . . . Machines Dismantled . | . . . Machines Sabotaged . | . . . Overloaded Fab Kills . | . . . Hacking | -11 -10 -10 --------- Run | Yrd Mat Min Machines Accessed 5 | . 5 . Terminals 5 | . 5 . Fabricators . | . . . Repair Stations . | . . . Recycling Units . | . . . Scanalyzers . | . . . Garrison Access . | . . . Total Hacks 14 | . 14 . Successful 6 | . 6 . Failed 8 | . 8 . Catastrophic 1 | . 1 . Database Lockouts . | . . . Manual 13 | . 13 . Terminals 14 | . 14 . Fabricators . | . . . Repair Stations . | . . . Recycling Units . | . . . Scanalyzers . | . . . Garrison Access . | . . . Terminal Hacks 6 | . 6 . Robot Analysis 5 | . 5 . Prototype ID Bank 1 | . 1 . Fabricator Hacks . | . . . Repair Station Hacks . | . . . Recycling Unit Hacks . | . . . Scanalyzer . | . . . Garrison Access Hacks . | . . . Unauthorized Hacks . | . . . Terminals . | . . . Fabricators . | . . . Repair Stations . | . . . Recycling Units . | . . . Scanalyzers . | . . . Garrison Access . | . . . Data Cores Recovered . | . . . Used . | . . . Hacking Detections 3 | . 3 . Full Trace Events 2 | . 2 . Feedback Events . | . . . Feedback Blocked . | . . . Robot Schematics Acquired . | . . . Robots Built . | . . . Authchips . | . . . Time . | . . . Total Robot Build Rating . | . . . Part Schematics Acquired . | . . . Parts Built . | . . . Authchips . | . . . Time . | . . . Total Part Build Rating . | . . . Parts Repaired . | . . . Time . | . . . Parts Recycled . | . . . Recycled Matter . | . . . Retrieved Matter . | . . . Retrieved Components . | . . . Parts Scanalyzed . | . . . Part Schematics Acquired . | . . . Parts Damaged . | . . . Bothacking | -11 -10 -10 ------------ Run | Yrd Mat Min Used RIF Installer . | . . . Robots Hacked . | . . . Non-combat . | . . . Combat . | . . . Robot Hacks Applied . | . . . Relay Couplers Released . | . . . Fabnet Peak Effective % . | . . . Robots Rewired . | . . . Allies Hacked . | . . . Hacks Repelled . | . . . Allies | -11 -10 -10 -------- Run | Yrd Mat Min Total Allies . | . . . Largest Group . | . . . Highest-Rated Group . | . . . Highest-Rated Ally . | . . . Total Orders . | . . . Ally Attacks . | . . . Total Damage . | . . . Kills . | . . . Allies Corrupted . | . . . Allies Melted . | . . . Intel | -11 -10 -10 ------- Run | Yrd Mat Min Robot Analysis Total 4 | . 4 . Derelict Logs Recovered . | . . . Drone Launches . | . . . Drone Recoveries . | . . . Exploration | -11 -10 -10 ------------- Run | Yrd Mat Min Turns Passed 1139 | 147 849 143 Spaces Moved 472 | 65 321 86 Core 141 | 14 127 . Treads 182 | 51 131 . Legs 149 | . 63 86 Wheels . | . . . Hover . | . . . Flight . | . . . Fastest Speed 50 | 50 120 120 Average Speed 186 | 136 214 122 Slowest Speed 350 | 160 350 190 Overloaded Moves . | . . . Propulsion Burnouts . | . . . Robots Hopped . | . . . Cave-ins Triggered . | . . . Exploration Rate (%) 26 | 4 47 27 Regions Visited 2 Branch Regions 1 Pre-discovered Areas . | . . . Known Exits Taken . | . . . Unknown Exits Taken 2 | 1 1 . Scrap Searched . | . . . Spaces Dug . | . . . Terrain Destroyed . | . . . Melee . | . . . Projectile . | . . . AOE . | . . . Terrain Rammed . | . . . Walls Destroyed . | . . . Machines Disabled . | . . . Actions | -11 -10 -10 --------- Run | Yrd Mat Min Total 612 | 96 409 107 Wait 31 | . 28 3 Move 470 | 64 320 86 Hop . | . . . Pick Up 21 | 9 10 2 Fast Attach 3 | 1 2 . Attach 11 | 6 3 2 Detach . | . . . Swap 2 | . 1 1 Drop 7 | . 6 1 Fire 64 | 16 36 12 Melee . | . . . Ram 1 | . 1 . Kick 1 | . 1 . Crush 1 | . 1 . Escape Stasis . | . . . Rewire . | . . . Trap . | . . . Miscellaneous . | . . . Route ------- -11/Scrapyard -10/Materials -10/Mines History --------- Turn | Location | Event 11 | -11/Scrapyard | Discovered new exit (range 15) 148 | -11/Scrapyard | Entered Materials 314 | -10/Materials | Build established: Mutant 708 | -10/Materials | Discovered new exit (range 15) 974 | -10/Materials | Core integrity fell below 50% 997 | -10/Materials | Entered Mines 1073 | -10/Mines | Found a damaged Exp. Sensor Array with a note attached 1075 | -10/Mines | Found Prototype Device 1077 | -10/Mines | Identified Exp. Sensor Array 1140 | -10/Mines | Core integrity fell below 20% 1141 | -10/Mines | Core destroyed Last Messages --------------- 01127_ Particle Cannon broken. 01127_ Overheating: Short circuit. 01127_ K-01 Serf collects debris. 01129_ Overheating: System interference. 01129_ Particle Cannon temporarily disabled. 01131_ Overheating: Broken Aluminum Leg damaged (-3). 01131_ K-01 Serf collects debris. 01133_ Broken Aluminum Leg destroyed. 01133_ Destroyed Lgt. Nuclear Core. 01133_ Particle Gun melted. 01133_ G-47 Trooper destroyed. 01135_ Power failure, Lgt. Ion Engine shutdown. 01136_ Overheating: System interference. 01136_ Particle Cannon temporarily disabled. 01138_ Overheating: Aluminum Leg damaged (-26). 01139_ Acquired Imp. Heat Sink. 01140_ Overheating: Core damaged (-45). 01140_ Acquired 42 matter. 01141_ Overheating: Core damaged (-37). Map ----- +----------------------------------------------------+ | ?????????????????????????????????????????????????? | | ?????????????????????????????????????????????????? | | ?????????????????????????????????????????????????? | | ?????????????????????????????????????????????????? | | ?????????????????????????????????????????????????? | | ?????????????????????????????????????????????????? | | ?????????????????????????????????????????? ?????? | | ?????????????????????????????????????????# ?????? | | ????????????????????????????????????????## ##???? | | ????????????????????????????????? ??????# ##??? | | ????????????????????????????????? ????## #??? | | ?????????????????? ??#???????????? ?#### #??? | | ???????????????? #???????????? ? #??? | | ?????????????? #??????????? ##?? | | ?????????????? ???????????? ??? | | ?????????????# ????????????? ??? | | ??????????????# ?????????????? #??? | | ??????????????# ??????????????? ?# #??? | | ??????????????# ??????????????# #?# #??? | | ???????????????# ????????####### ### #??? | | ????????????????? ????????# ##?? | | ??????????????????? ????????# #?? | | ????????????????????? ????????# ####### #?? | | ??????????????????????? ###?????# #?????# #?? | | ????????????????????????# ##????# #?????# #?? | | ?????????????????#?????##@% #????# #?????# #?? | | ?????????????????# ???## #????# #?????# #?? | | ?????????????????# ??# ####### #?????# ##? | | ?????????????????# ### #?# #?????## ## | | ?????????????????# #?# #??????## # | | ?????????????????# #?# ######???????## | | ?????????????????##### #?# #?????????????## | | ???????????????????## ### #??????????????## | | ???????????????????# ### #???????????????### | | ???????????????????# ### #?????????????????# | | ???????????????????# #?# ##?????????????????? | | ??????????????????## ### ###????##??????????? | | ?????????????###### ## ## ###????????? | | ????????????# "?????? | | ????????????# ##### ?????? | | ??????????????????## ### ## ####??????? | | ???????????????????#####?## ##? #????????? | | ??????????????????????????####??? #???????? | | ????????????????????????????????? ???????? | | ?????????????????????????????????? ???????? | | ?????????????????????????????????? ????????? | | ??????????????????????????????????? ????????? | | ????????????????????????????????????? ?????????? | | ?????????????????????????????????????????????????? | | ?????????????????????????????????????????????????? | +----------------------------------------------------+ Best States ------------- Heat Dissipation 25 Energy Generation 10 Energy Capacity 250 Matter Stores 300 Matter Capacity 300 Sight Range 16 Robot Scan Range 20 Terrain Scan Density 10 Evasion (%) 55 Recoil Reduction 2 Item Schematics ----------------- None Robot Schematics ------------------ None Fabricated ------------ Nothing Alien Tech Used ----------------- None Achievements -------------- None Challenges ------------ None Game ------ Seed LightpackWarpExtractor Manual? 0 Play Time 00:11:41 Cumulative 17.5 hours Start 2024.05.21 @ 20:08:23 End 2024.05.21 @ 20:18:43 Sessions 1 Manual Loads 0 Difficulty Rogue Special Mode None Game No. 39 Rogue 39 Adventurer 0 Explorer 0 Win Type - Total 0 Types 0/0/0/0/0/0/0/0/0 Lore% 25 Gallery% 21 Achievement% 20 Wizard Run 0 Options --------- Layout 1 ASCII 0 Keyboard 0 Movement Mouse Keybinds 0 Fullscreen 1 Font 24/Smallcaps Map View 50x35 Zoom Use 0% Tactical HUD 1 Map Filters NONE Filters NONE Steam 1 RUN: 5c8d154d-97ed-4621-8e42-c12b2d5bb374